bitfinex-derivatives/quotes_BNBF0:USTF0_20250413
["timestamp","ask_amount","ask_price","bid_price","bid_amount"]
[1744512312911,0.30905938,595.34,594.28,4.31754169]
[1744512314715,0.29264355,595.33,594.28,4.31754169]
[1744512314910,0.30905938,595.32,594.28,4.31754169]
[1744512317612,0.29264601,595.31,594.28,4.31754169]
[1744512317817,0.30905938,595.3,594.28,4.31754169]
[1744512320621,0.60172754,595.29,594.28,4.31754169]
[1744512320923,0.30905938,595.28,594.28,4.31754169]
[1744512326628,0.30905938,595.41,594.28,4.31754169]
[1744512326829,0.64496237,595.41,594.28,4.31754169]
[1744512327130,0.30905938,595.4,594.28,4.31754169]
[1744512327330,0.64496801,595.4,594.28,4.31754169]
[1744512327530,0.64497365,595.39,594.28,4.31754169]
[1744512327730,0.30905938,595.38,594.28,4.31754169]
[1744512329737,0.30905938,595.37,594.28,4.31754169]
[1744512329932,0.30905938,595.36,594.28,4.31754169]
[1744512330138,0.30905938,595.35,594.28,4.31754169]
[1744512330438,0.30905938,595.34,594.28,4.31754169]
[1744512330632,0.30905938,595.33,594.28,4.31754169]
[1744512330832,0.30905938,595.32,594.28,4.31754169]
[1744512331036,0.30905938,595.31,594.28,4.31754169]
[1744512331237,0.30905938,595.3,594.28,4.31754169]
[1744512331433,0.30905938,595.29,594.28,4.31754169]
[1744512331638,0.30905938,595.28,594.28,4.31754169]
[1744512331833,0.30905938,595.33,594.28,4.31754169]
[1744512332031,0.30905938,595.32,594.28,4.31754169]
[1744512332238,0.30905938,595.31,594.28,4.31754169]
[1744512332439,0.30905938,595.33,594.28,4.31754169]
[1744512332737,0.30905938,595.32,594.28,4.31754169]
[1744512333038,0.30905938,595.31,594.28,4.31754169]
[1744512333338,0.30905938,595.3,594.28,4.31754169]
[1744512333533,0.30905938,595.35,594.28,4.31754169]
[1744512333737,0.29266447,595.3,594.28,4.31754169]
[1744512334032,0.30905938,595.29,594.28,4.31754169]
[1744512334234,0.30905938,595.28,594.28,4.31754169]
[1744512334438,0.30905938,595.29,594.28,4.31754169]
[1744512334636,0.30905938,595.28,594.28,4.31754169]
[1744512334837,0.30905938,595.29,594.28,4.31754169]
[1744512336938,0.30905938,595.28,594.28,4.31754169]
[1744512337139,0.30905938,595.27,594.28,4.31754169]
[1744512337336,0.30905938,595.29,594.28,4.31754169]
[1744512338042,0.29266447,595.3,594.28,4.31754169]
[1744512338235,0.3091102,595.29,594.28,4.31754169]
[1744512338638,0.3091102,595.33,594.28,4.31754169]
[1744512338848,0.3091102,595.32,594.28,4.31754169]
[1744512339142,0.3091102,595.31,594.28,4.31754169]
[1744512339343,0.3091102,595.34,594.28,4.31754169]
[1744512339645,0.2926657,595.3,594.28,4.31754169]
[1744512339846,0.3091102,595.29,594.28,4.31754169]
[1744512341652,0.2926657,595.3,594.28,4.31754169]
[1744512341848,0.30914065,595.29,594.28,4.31754169]
[1744512344559,0.30914065,595.38,594.28,4.31754169]
[1744512344856,0.29268908,595.28,594.28,4.31754169]
[1744512345057,0.30913336,595.27,594.28,4.31754169]
[1744512345257,0.30913336,595.36,594.28,4.31754169]
[1744512345859,0.29268047,595.35,594.28,4.31754169]
[1744512346059,0.30913336,595.34,594.28,4.31754169]
[1744512347559,0.30913336,595.36,594.28,4.31754169]
[1744512347859,0.29268293,595.33,594.28,4.31754169]
[1744512348061,0.30913336,595.32,594.28,4.31754169]
[1744512348361,0.30913336,595.31,594.28,4.31754169]
[1744512348562,0.30913336,595.3,594.28,4.31754169]
[1744512348862,0.30913336,595.29,594.28,4.31754169]
[1744512349057,0.30913336,595.28,594.28,4.31754169]
[1744512349258,0.30913336,595.27,594.28,4.31754169]
[1744512349459,0.30913336,595.26,594.28,4.31754169]
[1744512349661,0.30913336,595.25,594.28,4.31754169]
[1744512349867,0.30913336,595.24,594.28,4.31754169]
[1744512350160,0.30913336,595.23,594.28,4.31754169]
[1744512350358,0.30913336,595.22,594.28,4.31754169]
[1744512350662,0.30913336,595.21,594.28,4.31754169]
[1744512351463,0.30911922,595.2,594.28,4.31754169]
[1744512351662,0.30911922,595.21,594.28,4.31754169]
[1744512353467,0.30911922,595.23,594.28,4.31754169]
[1744512353766,0.29269893,595.2,594.28,4.31754169]
[1744512353960,0.30911922,595.19,594.28,4.31754169]
[1744512354765,0.29269893,595.2,594.28,4.31754169]
[1744512354965,0.30911306,595.19,594.28,4.31754169]
[1744512356367,1.27338355,595.22,594.28,4.31754169]
[1744512356563,0.30910612,595.21,594.28,4.31754169]
[1744512357568,1.58248967,595.21,594.28,4.31754169]
[1744512357865,0.60178782,595.2,594.28,4.31754169]
[1744512358066,0.30910612,595.19,594.28,4.31754169]
[1744512359666,0.29268416,595.18,594.28,4.31754169]
[1744512359867,0.30910337,595.17,594.28,4.31754169]
[1744512362669,0.30910074,595.16,594.28,4.31754169]
[1744512362961,0.30910074,595.15,594.28,4.31754169]
[1744512363166,1.27338355,595.3,594.28,4.31754169]
[1744512363167,0.30910074,595.29,594.28,4.31754169]
[1744512363363,0.30910074,595.28,594.28,4.31754169]
[1744512363565,0.30910074,595.29,594.28,4.31754169]
[1744512363762,0.60177259,595.28,594.28,4.31754169]
[1744512364067,0.30910074,595.27,594.28,4.31754169]
[1744512364269,0.29267185,595.28,594.28,4.31754169]
[1744512364468,0.3091025,595.27,594.28,4.31754169]
[1744512365567,0.3091025,595.3,594.28,4.31754169]
[1744512365766,0.29267431,595.26,594.28,4.31754169]
[1744512366168,0.30909544,595.25,594.28,4.31754169]
[1744512367571,0.29267431,595.26,594.28,4.31754169]
[1744512367870,0.30907363,595.25,594.28,4.31754169]
[1744512368569,0.30907363,595.36,594.28,4.31754169]
[1744512369671,0.29264109,595.35,594.28,4.31754169]
[1744512369871,0.30907363,595.34,594.28,4.31754169]
[1744512370973,0.29264109,595.35,594.28,4.31754169]
[1744512371274,0.3090671,595.34,594.28,4.31754169]
[1744512371774,0.29264355,595.33,594.28,4.31754169]
[1744512372174,0.3090671,595.32,594.28,4.31754169]
[1744512373275,0.3090671,595.31,594.28,4.31754169]
[1744512373475,0.3090671,595.3,594.28,4.31754169]
[1744512373774,0.3090671,595.29,594.28,4.31754169]
[1744512373976,0.3090671,595.32,594.28,4.31754169]
[1744512374172,0.3090671,595.31,594.28,4.31754169]
[1744512374372,0.3090671,595.32,594.28,4.31754169]
[1744512374573,0.3090671,595.31,594.28,4.31754169]
[1744512374875,0.60173526,595.3,594.28,4.31754169]
[1744512375070,0.3090671,595.29,594.28,4.31754169]
[1744512375575,0.3090671,595.28,594.28,4.31754169]
[1744512375777,0.3090671,595.29,594.28,4.31754169]
[1744512375975,0.3090671,595.28,594.28,4.31754169]
[1744512376175,0.3090671,595.29,594.28,4.31754169]
[1744512376476,0.3090671,595.28,594.28,4.31754169]
[1744512376676,0.3090671,595.29,594.28,4.31754169]
[1744512377677,0.3090671,595.28,594.28,4.31754169]
[1744512377873,0.3090671,595.32,594.28,4.31754169]
[1744512378074,0.3090671,595.31,594.28,4.31754169]
[1744512378276,0.3090671,595.3,594.28,4.31754169]
[1744512378476,0.3090671,595.32,594.28,4.31754169]
[1744512378677,0.29268047,595.3,594.28,4.31754169]
[1744512378976,0.3090671,595.29,594.28,4.31754169]
[1744512380775,0.3090671,595.36,594.28,4.31754169]
[1744512380975,1.27338355,595.43,594.28,4.31754169]
[1744512381176,0.30907102,595.36,594.28,4.31754169]
[1744512381578,0.29264355,595.35,594.28,4.31754169]
[1744512381778,0.30907102,595.34,594.28,4.31754169]
[1744512383679,0.30907102,595.36,594.28,4.31754169]
[1744512383878,0.30907102,595.35,594.28,4.31754169]
[1744512384079,0.30907102,595.36,594.28,4.31754169]
[1744512384273,1.27338355,595.56,594.28,4.31754169]
[1744512384274,0.30907102,595.35,594.28,4.31754169]
[1744512384474,0.30907102,595.36,594.28,4.31754169]
[1744512384778,0.60171457,595.35,594.28,4.31754169]
[1744512384973,0.30907102,595.34,594.28,4.31754169]
[1744512389682,0.30907102,595.33,594.28,4.31754169]
[1744512389882,0.30907102,595.36,594.28,4.31754169]
[1744512390081,1.27338355,595.51,594.28,4.31754169]
[1744512390082,0.30907102,595.35,594.28,4.31754169]
[1744512390282,0.30907102,595.34,594.28,4.31754169]
[1744512390479,0.30907102,595.33,594.28,4.31754169]
[1744512390679,0.30907102,595.36,594.28,4.31754169]
[1744512390882,0.29268047,595.33,594.28,4.31754169]
[1744512391078,0.30907102,595.32,594.28,4.31754169]
[1744512391678,0.30907102,595.31,594.28,4.31754169]
[1744512391982,0.30907102,595.3,594.28,4.31754169]
[1744512392179,0.30907102,595.32,594.28,4.31754169]
[1744512392379,0.30907102,595.31,594.28,4.31754169]
[1744512392678,0.30907102,595.3,594.28,4.31754169]
[1744512392978,0.30907102,595.36,594.28,4.31754169]
[1744512393184,0.30907102,595.35,594.28,4.31754169]
[1744512393383,0.30907102,595.34,594.28,4.31754169]
[1744512393585,0.30907102,595.33,594.28,4.31754169]
[1744512393783,0.30907102,595.32,594.28,4.31754169]
[1744512393985,0.30907102,595.31,594.28,4.31754169]
[1744512394285,0.30907102,595.33,594.28,4.31754169]
[1744512394582,0.30907102,595.32,594.28,4.31754169]
[1744512394782,0.30907102,595.31,594.28,4.31754169]
[1744512395082,0.30907102,595.3,594.28,4.31754169]
[1744512395283,0.30907102,595.33,594.28,4.31754169]
[1744512395483,0.30907102,595.32,594.28,4.31754169]
[1744512395682,0.30907102,595.31,594.28,4.31754169]
[1744512395882,0.30907102,595.3,594.28,4.31754169]
[1744512396184,0.30907102,595.29,594.28,4.31754169]
[1744512396377,0.30907102,595.34,594.28,4.31754169]
[1744512396582,0.30907102,595.33,594.28,4.31754169]
[1744512396882,0.29267554,595.28,594.28,4.31754169]
[1744512397083,0.30907102,595.27,594.28,4.31754169]
[1744512398579,0.30907102,595.35,594.28,4.31754169]
[1744512398779,0.30907102,595.34,594.28,4.31754169]
[1744512398979,0.30907102,595.33,594.28,4.31754169]
[1744512399180,0.30907102,595.32,594.28,4.31754169]
[1744512399584,0.30907102,595.31,594.28,4.31754169]
[1744512399787,0.30907102,595.3,594.28,4.31754169]
[1744512400086,0.30907102,595.29,594.28,4.31754169]
[1744512400287,0.30907102,595.28,594.28,4.31754169]
[1744512400586,0.30907102,595.27,594.28,4.31754169]
[1744512400786,0.30907102,595.26,594.28,4.31754169]
[1744512400987,0.30907102,595.25,594.28,4.31754169]
[1744512401287,0.30907102,595.24,594.28,4.31754169]
[1744512401487,0.30907102,595.23,594.28,4.31754169]
[1744512401687,0.30907102,595.22,594.28,4.31754169]
[1744512401887,0.30907102,595.32,594.28,4.31754169]
[1744512402188,0.30907102,595.31,594.28,4.31754169]
[1744512402490,1.27338355,595.25,594.28,4.31754169]
[1744512402889,0.30911044,595.24,594.28,4.31754169]
[1744512404787,0.30911044,595.26,594.28,4.31754169]
[1744512404990,0.29267308,595.23,594.28,4.31754169]
[1744512405189,0.30911044,595.22,594.28,4.31754169]
[1744512405990,0.29267308,595.23,594.28,4.31754169]
[1744512406290,0.30910761,595.22,594.28,4.31754169]
[1744512407591,0.30910761,595.28,594.28,4.31754169]
[1744512407791,0.29266816,595.21,594.28,4.31754169]
[1744512407991,0.30910892,595.2,594.28,4.31754169]
[1744512408391,0.30910892,595.28,594.28,4.31754169]
[1744512408893,0.29266816,595.27,594.28,4.31754169]
[1744512409090,0.30910892,595.26,594.28,4.31754169]
[1744512410595,0.30910892,595.36,594.28,4.31754169]
[1744512410795,0.29267062,595.25,594.28,4.31754169]
[1744512410997,0.30910892,595.24,594.28,4.31754169]
[1744512411289,0.30910892,595.23,594.28,4.31754169]
[1744512411490,0.30910892,595.36,594.28,4.31754169]
[1744512411692,0.30910892,595.35,594.28,4.31754169]
[1744512411890,0.29265831,595.22,594.28,4.31754169]
[1744512412088,0.30910892,595.21,594.28,4.31754169]
[1744512412295,0.292662,595.21,594.28,4.31754169]
[1744512412494,0.30910892,595.2,594.28,4.31754169]
[1744512413795,0.60178692,595.19,594.28,4.31754169]
[1744512413995,0.30910892,595.18,594.28,4.31754169]
[1744512416696,0.30910892,595.17,594.28,4.31754169]
[1744512416995,0.30910892,595.16,594.28,4.31754169]
[1744512417295,1.27338355,595.27,594.28,4.31754169]
[1744512417296,0.30910892,595.15,594.28,4.31754169]
[1744512417495,0.30910892,595.26,594.28,4.31754169]
[1744512417696,0.29267062,595.14,594.28,4.31754169]
[1744512417895,0.30910892,595.13,594.28,4.31754169]
[1744512418196,0.601782,595.13,594.28,4.31754169]
[1744512418395,0.30910892,595.12,594.28,4.31754169]
[1744512419698,0.30910892,595.26,594.28,4.31754169]
[1744512419895,1.27338355,595.21,594.28,4.31754169]
[1744512420093,0.30910892,595.2,594.28,4.31754169]
[1744512420698,0.29272478,595.19,594.28,4.31754169]
[1744512420899,0.30910892,595.18,594.28,4.31754169]
[1744512422498,0.30910892,595.2,594.28,4.31754169]
[1744512422693,0.29272232,595.17,594.28,4.31754169]
[1744512422897,0.30910892,595.16,594.28,4.31754169]
[1744512425501,0.3091464,595.15,594.28,4.31754169]
[1744512425701,0.3091464,595.25,594.28,4.31754169]
[1744512425901,0.3091464,595.24,594.28,4.31754169]
[1744512426101,0.3091464,595.25,594.28,4.31754169]
[1744512426302,0.3091464,595.24,594.28,4.31754169]
[1744512426602,0.3091464,595.23,594.28,4.31754169]
[1744512426902,0.3091464,595.22,594.28,4.31754169]
[1744512428602,0.3091464,595.25,594.28,4.31754169]
[1744512428799,0.29271739,595.21,594.28,4.31754169]
[1744512429002,0.3091464,595.2,594.28,4.31754169]
[1744512430301,0.29271739,595.21,594.28,4.31754169]
[1744512430505,0.30918478,595.2,594.28,4.31754169]
[1744512431600,0.30918478,595.25,594.28,4.31754169]
[1744512431804,0.2927137,595.19,594.28,4.31754169]
[1744512432000,0.30918478,595.18,594.28,4.31754169]
[1744512434603,0.30918478,595.25,594.28,4.31754169]
[1744512434804,0.29269647,595.17,594.28,4.31754169]
[1744512435005,0.30918478,595.16,594.28,4.31754169]
[1744512435408,0.30918478,595.25,594.28,4.31754169]
[1744512436409,0.29269647,595.24,594.28,4.31754169]
[1744512436609,0.30918478,595.23,594.28,4.31754169]
[1744512437611,0.30918478,595.25,594.28,4.31754169]
[1744512437812,0.29269647,595.22,594.28,4.31754169]
[1744512438013,0.30918478,595.21,594.28,4.31754169]
[1744512440619,0.30918478,595.25,594.28,4.31754169]
[1744512440817,0.29270139,595.2,594.28,4.31754169]
[1744512441023,0.30918478,595.19,594.28,4.31754169]
[1744512442017,0.29270139,595.2,594.28,4.31754169]
[1744512442218,0.30913626,595.19,594.28,4.31754169]
[1744512443718,0.29270385,595.18,594.28,4.31754169]
[1744512443918,0.30913148,595.17,594.28,4.31754169]
[1744512446620,0.30913148,595.25,594.28,4.31754169]
[1744512448223,0.29268662,595.24,594.28,4.31754169]
[1744512448424,0.30913148,595.23,594.28,4.31754169]
[1744512448721,0.29268662,595.24,594.28,4.31754169]
[1744512448923,0.30912038,595.23,594.28,4.31754169]
[1744512449727,0.30912038,595.22,594.28,4.31754169]
[1744512449926,0.30912038,595.25,594.28,4.31754169]
[1744512450225,0.30912038,595.24,594.28,4.31754169]
[1744512450427,0.33598763,595.26,594.28,4.31754169]
[1744512450625,0.30912042,595.25,594.28,4.31754169]
[1744512450826,0.29268662,595.23,594.28,4.31754169]
[1744512451020,0.30912042,595.22,594.28,4.31754169]
[1744512452022,0.29268662,595.23,594.28,4.31754169]
[1744512452321,0.3091128,595.22,594.28,4.31754169]
[1744512452728,0.3091128,595.25,594.28,4.31754169]
[1744512452925,0.3091128,595.24,594.28,4.31754169]
[1744512453225,0.3091128,595.23,594.28,4.31754169]
[1744512453427,0.3091128,595.25,594.28,4.31754169]
[1744512453727,0.29268662,595.22,594.28,4.31754169]
[1744512453926,0.3091128,595.21,594.28,4.31754169]
[1744512455329,0.29268662,595.22,594.28,4.31754169]
[1744512455528,0.30912527,595.2,594.28,4.31754169]
[1744512455826,0.30912527,595.19,594.28,4.31754169]
[1744512456125,0.30912527,595.18,594.28,4.31754169]
[1744512456325,0.30912527,595.25,594.28,4.31754169]
[1744512456524,0.30912527,595.24,594.28,4.31754169]
[1744512456721,0.29268662,595.17,594.28,4.31754169]
[1744512457026,0.30912527,595.16,594.28,4.31754169]
[1744512457222,0.30912527,595.25,594.28,4.31754169]
[1744512457421,0.30912527,595.24,594.28,4.31754169]
[1744512457624,0.30912527,595.25,594.28,4.31754169]
[1744512457927,0.29268662,595.23,594.28,4.31754169]
[1744512458125,0.30912527,595.22,594.28,4.31754169]
[1744512458627,0.30912527,595.25,594.28,4.31754169]
[1744512459729,0.29268662,595.24,594.28,4.31754169]
[1744512459929,0.30912527,595.23,594.28,4.31754169]
[1744512460124,0.29268662,595.24,594.28,4.31754169]
[1744512460329,0.3091066,595.23,594.28,4.31754169]
[1744512461726,0.3091066,595.25,594.28,4.31754169]
[1744512461930,0.30911557,595.24,594.28,4.31754169]
[1744512462125,0.30911557,595.25,594.28,4.31754169]
[1744512462328,0.30911557,595.24,594.28,4.31754169]
[1744512462626,0.30911557,595.23,594.28,4.31754169]
[1744512462835,0.29268662,595.23,594.28,4.31754169]
[1744512463030,0.30911557,595.22,594.28,4.31754169]
[1744512464527,0.33598763,595.26,594.28,4.31754169]
[1744512464528,0.30911557,595.21,594.28,4.31754169]
[1744512464731,0.29268662,595.21,594.28,4.31754169]
[1744512464934,0.30911557,595.2,594.28,4.31754169]
[1744512465235,0.30912228,595.19,594.28,4.31754169]
[1744512465435,0.30912228,595.2,594.28,4.31754169]
[1744512467636,1.58250583,595.25,594.28,4.31754169]
[1744512467829,0.30912228,595.24,594.28,4.31754169]
[1744512468033,0.30912228,595.23,594.28,4.31754169]
[1744512468236,0.30912228,595.22,594.28,4.31754169]
[1744512468437,0.30912228,595.24,594.28,4.31754169]
[1744512468635,1.27338355,595.25,594.28,4.31754169]
[1744512468837,0.29265339,595.21,594.28,4.31754169]
[1744512470538,1.27338355,595.25,594.28,4.31754169]
[1744512470736,0.29264355,595.2,594.28,4.31754169]
[1744512473437,1.27338355,596.25,594.28,4.31754169]
[1744512473631,0.309056,596.24,594.28,4.31754169]
[1744512473833,0.33544664,596.22,594.28,4.31754169]
[1744512474035,0.309056,596.21,594.28,4.31754169]
[1744512474537,0.33546352,596.19,594.28,4.31754169]
[1744512474935,0.30905677,596.18,594.28,4.31754169]
[1744512475136,0.3354804,596.16,594.28,4.31754169]
[1744512475336,0.30905677,596.15,594.28,4.31754169]
[1744512475636,0.33549729,596.13,594.28,4.31754169]
[1744512475836,0.30905677,596.12,594.28,4.31754169]
[1744512477737,0.29253531,596.11,594.28,4.31754169]
[1744512478237,0.30905691,596.1,594.28,4.31754169]
[1744512478439,0.30905691,596.09,594.28,4.31754169]
[1744512478639,0.30905691,596.08,594.28,4.31754169]
[1744512478838,0.30905691,596.07,594.28,4.31754169]
[1744512479041,0.30905691,596.06,594.28,4.31754169]
[1744512479240,0.30905691,596.05,594.28,4.31754169]
[1744512479436,0.30905691,596.04,594.28,4.31754169]
[1744512479639,0.30905691,596.03,594.28,4.31754169]
[1744512479840,0.30905691,596.02,594.28,4.31754169]
[1744512480036,0.30905691,596.01,594.28,4.31754169]
[1744512480341,0.30905691,596.0,594.28,4.31754169]
[1744512480542,0.30905691,595.99,594.28,4.31754169]
[1744512480745,0.30905691,595.98,594.28,4.31754169]
[1744512480940,0.33559299,595.96,594.28,4.31754169]
[1744512481137,1.27338355,595.79,594.28,4.31754169]
[1744512481343,0.33570001,595.77,594.28,4.31754169]
[1744512481545,0.30905383,595.76,594.28,4.31754169]
[1744512481743,0.33571128,595.75,594.28,4.31754169]
[1744512481945,0.30905383,595.74,594.28,4.31754169]
[1744512482142,0.33572255,595.73,594.28,4.31754169]
[1744512482345,0.30905383,595.72,594.28,4.31754169]
[1744512482642,0.33573383,595.71,594.28,4.31754169]
[1744512482844,0.30905383,595.7,594.28,4.31754169]
[1744512483047,0.3357451,595.69,594.28,4.31754169]
[1744512483247,0.30905383,595.68,594.28,4.31754169]
[1744512483444,0.6448102,595.67,594.28,4.31754169]
[1744512483748,0.64481584,595.66,594.28,4.31754169]
[1744512483951,0.33576764,595.65,594.28,4.31754169]
[1744512484247,0.30907751,595.64,594.28,4.31754169]
[1744512484446,0.33577892,595.63,594.28,4.31754169]
[1744512484651,0.30907751,595.62,594.28,4.31754169]
[1744512484851,0.33579019,595.61,594.28,4.31754169]
[1744512485150,0.30907751,595.6,594.28,4.31754169]
[1744512485346,0.33580147,595.59,594.28,4.31754169]
[1744512485750,0.60168614,595.58,594.28,4.31754169]
[1744512485951,0.30907827,595.57,594.28,4.31754169]
[1744512486450,0.33581838,595.56,594.28,4.31754169]
[1744512486651,0.30907827,595.55,594.28,4.31754169]
[1744512486951,0.64490229,595.55,594.28,4.31754169]
[1744512487146,0.33582402,595.55,594.28,4.31754169]
[1744512487346,0.30907853,595.54,594.28,4.31754169]
[1744512488751,0.29261402,595.53,594.28,4.31754169]
[1744512488947,0.30907853,595.52,594.28,4.31754169]
[1744512490456,0.29261402,595.53,594.28,4.31754169]
[1744512490651,0.30907763,595.52,594.28,4.31754169]
[1744512491454,0.30907763,595.51,594.28,4.31754169]
[1744512491651,0.30907763,595.5,594.28,4.31754169]
[1744512491854,0.30907763,595.49,594.28,4.31754169]
[1744512492055,0.30907763,595.48,594.28,4.31754169]
[1744512492354,0.30907763,595.47,594.28,4.31754169]
[1744512492650,0.30907763,595.46,594.28,4.31754169]
[1744512492856,0.30907763,595.45,594.28,4.31754169]
[1744512493150,1.27338355,595.43,594.28,4.31754169]
[1744512493356,0.30907763,595.42,594.28,4.31754169]
[1744512494659,0.2926657,595.41,594.28,4.31754169]
[1744512494860,0.30907763,595.4,594.28,4.31754169]
[1744512495255,0.2926657,595.41,594.28,4.31754169]
[1744512495458,0.30915678,595.4,594.28,4.31754169]
[1744512497654,0.30915678,595.39,594.28,4.31754169]
[1744512497858,0.29268293,595.39,594.28,4.31754169]
[1744512498055,0.30915678,595.38,594.28,4.31754169]
[1744512498354,0.33592555,595.37,594.28,4.31754169]
[1744512498557,0.30915678,595.36,594.28,4.31754169]
[1744512498764,0.33593684,595.35,594.28,4.31754169]
[1744512498957,0.30915678,595.34,594.28,4.31754169]
[1744512500153,0.33593684,595.35,594.28,4.31754169]
[1744512500361,0.30917472,595.34,594.28,4.31754169]
[1744512501061,0.33594812,595.33,594.28,4.31754169]
[1744512501261,0.30917472,595.32,594.28,4.31754169]
[1744512501662,0.29269277,595.31,594.28,4.31754169]
[1744512501861,0.30917472,595.3,594.28,4.31754169]
[1744512503666,0.29269524,595.29,594.28,4.31754169]
[1744512503866,0.30917472,595.28,594.28,4.31754169]
[1744512505067,0.30917672,595.27,594.28,4.31754169]
[1744512505260,0.30917672,595.28,594.28,4.31754169]
[1744512506670,0.3091761,595.27,594.28,4.31754169]
[1744512506970,0.3091761,595.26,594.28,4.31754169]
[1744512507171,0.3091761,595.32,594.28,4.31754169]
[1744512507366,0.3091761,595.31,594.28,4.31754169]
[1744512507566,0.3091761,595.3,594.28,4.31754169]
[1744512507772,0.29269277,595.31,594.28,4.31754169]
[1744512507971,0.3091761,595.3,594.28,4.31754169]
[1744512508170,0.3359707,595.29,594.28,4.31754169]
[1744512508371,0.3091761,595.28,594.28,4.31754169]
[1744512508571,0.33598199,595.27,594.28,4.31754169]
[1744512508771,0.3091761,595.26,594.28,4.31754169]
[1744512508969,0.64516373,595.26,594.28,4.31754169]
[1744512509168,0.3091761,595.25,594.28,4.31754169]
[1744512509367,0.3091761,595.24,594.28,4.31754169]
[1744512509571,0.3091761,595.23,594.28,4.31754169]
[1744512509967,0.3091761,595.22,594.28,4.31754169]
[1744512510171,0.3091761,595.21,594.28,4.31754169]
[1744512510371,0.3091761,595.2,594.28,4.31754169]
[1744512510575,0.3091761,595.19,594.28,4.31754169]
[1744512510871,0.3091761,595.18,594.28,4.31754169]
[1744512511071,0.3091761,595.17,594.28,4.31754169]
[1744512511273,0.3091761,595.16,594.28,4.31754169]
[1744512511468,0.3091761,595.15,594.28,4.31754169]
[1744512511668,0.3091761,595.14,594.28,4.31754169]
[1744512511873,0.3091761,595.23,594.28,4.31754169]
[1744512512072,0.3091761,595.22,594.28,4.31754169]
[1744512512273,0.3091761,595.21,594.28,4.31754169]
[1744512512474,0.3091761,595.2,594.28,4.31754169]
[1744512512774,0.3091761,595.19,594.28,4.31754169]
[1744512512974,0.3091761,595.18,594.28,4.31754169]
[1744512513276,0.3091761,595.17,594.28,4.31754169]
[1744512513572,0.3091761,595.16,594.28,3.981]
[1744512513775,0.3091761,595.15,594.28,3.981]
[1744512514074,0.3091761,595.14,594.28,3.981]
[1744512514275,0.3091761,595.13,594.28,3.981]
[1744512514478,0.3091761,595.12,594.28,3.981]
[1744512514676,0.30924296,595.11,594.28,3.981]
[1744512514976,0.30924296,595.1,594.28,3.981]
[1744512515171,0.30924296,595.09,594.28,3.981]
[1744512515370,0.30924296,595.08,594.28,3.981]
[1744512515575,0.30924296,595.07,594.28,3.981]
[1744512515879,0.30924296,595.06,594.28,3.981]
[1744512516272,0.29274079,595.07,594.28,3.981]
[1744512516474,0.30923132,595.06,594.28,3.981]
[1744512516671,0.30923132,595.05,594.28,3.981]
[1744512516875,0.30923132,595.04,594.28,3.981]
[1744512517076,0.30923132,595.03,594.28,3.981]
[1744512517276,0.30923132,595.02,594.28,3.981]
[1744512517476,0.30923132,595.06,594.28,3.981]
[1744512517679,0.30923132,595.05,594.28,3.981]
[1744512517873,0.30928956,595.04,594.28,3.981]
[1744512518075,0.30928956,595.03,594.28,3.981]
[1744512518278,0.30928956,595.02,594.28,3.981]
[1744512518480,0.30928956,595.01,594.28,3.981]
[1744512518677,0.30928956,595.25,594.28,3.981]
[1744512518877,0.64528848,595.24,594.28,3.981]
[1744512519078,0.30928956,595.23,594.28,3.981]
[1744512519278,0.30928956,595.22,594.28,3.981]
[1744512519477,0.33599892,595.24,594.28,3.981]
[1744512519677,0.29276541,595.21,594.28,3.981]
[1744512519882,0.30928708,595.2,594.28,3.981]
[1744512520183,0.30928708,595.19,594.28,3.981]
[1744512520378,0.30928708,595.18,594.28,3.981]
[1744512520579,0.30928708,595.17,594.28,3.981]
[1744512520778,0.30928708,595.16,594.28,3.981]
[1744512521083,0.30928708,595.15,594.28,3.981]
[1744512521283,0.30928708,595.14,594.28,3.981]
[1744512521583,0.30928708,595.13,594.28,3.981]
[1744512521783,0.30928708,595.12,594.28,3.981]
[1744512522083,0.6453594,595.11,594.28,3.981]
[1744512522279,0.64536505,595.1,594.28,3.981]
[1744512522483,0.64537069,595.09,594.28,3.981]
[1744512522685,0.64537634,595.08,594.28,3.981]
[1744512522884,0.30928708,595.07,594.28,3.981]
[1744512525786,0.29277527,595.06,594.28,3.981]
[1744512525980,0.30928708,595.05,594.28,3.981]
[1744512527487,0.29277527,595.06,594.28,3.981]
[1744512527682,0.3092379,595.04,594.28,3.981]
[1744512527985,0.3092379,595.03,594.28,3.981]
[1744512528184,0.3092379,595.05,594.28,3.981]
[1744512530689,0.3092379,595.07,594.28,3.981]
[1744512530886,0.3092379,595.06,594.28,3.981]
[1744512531084,0.3092379,595.07,594.28,3.981]
[1744512531783,0.29274571,595.06,594.28,3.981]
[1744512532990,0.30922898,595.05,594.28,3.981]
[1744512536086,0.29274571,595.06,594.28,3.981]
[1744512536390,0.30929109,595.05,594.28,3.981]
[1744512536792,0.29278266,595.05,594.28,3.981]
[1744512536987,0.30929109,595.04,594.28,3.981]
[1744512537692,0.29278266,595.05,594.28,3.981]
[1744512537992,0.30929176,595.04,594.28,3.981]